bitfinex-derivatives/quotes_BNBF0:USTF0_20250521
["timestamp","ask_amount","ask_price","bid_price","bid_amount"]
[1747786420309,0.26736222,651.49,650.52,1.178]
[1747786422511,0.946,651.5,650.52,1.178]
[1747786423011,1.50947033,651.47,650.52,1.178]
[1747786425712,1.50947033,651.41,650.52,1.178]
[1747786426313,0.26737146,651.4,650.52,1.178]
[1747786428208,1.50947033,651.35,650.52,1.178]
[1747786430313,1.50947033,651.28,650.52,1.178]
[1747786431514,1.50947033,651.28,650.53,0.58686204]
[1747786431714,1.50947033,651.28,650.54,0.58686204]
[1747786431909,1.50947033,651.28,650.55,0.58686204]
[1747786432109,1.50947033,651.28,650.19,0.2435767]
[1747786432310,1.50947033,651.28,650.2,1.29155073]
[1747786432513,1.50947033,651.26,650.21,0.83046964]
[1747786432716,1.50947033,651.26,650.22,1.29155073]
[1747786432918,1.50947033,651.26,650.23,0.58689294]
[1747786433116,1.50947033,651.26,650.24,1.29155073]
[1747786433418,1.50947033,651.26,650.25,0.58689294]
[1747786433716,1.50947033,651.26,650.26,1.29155073]
[1747786433918,1.50947033,651.26,650.27,0.58689294]
[1747786434116,1.50947033,651.26,650.28,0.58689294]
[1747786434317,1.50947033,651.26,650.29,1.29155073]
[1747786434618,1.50947033,651.26,650.3,1.29155073]
[1747786434916,1.50947033,651.26,650.31,0.58689294]
[1747786435116,1.50947033,651.26,650.32,0.58689294]
[1747786435318,1.50947033,651.26,650.33,1.29155073]
[1747786435620,1.50947033,651.26,650.34,0.58689294]
[1747786435918,1.50947033,651.32,650.35,0.58689294]
[1747786436113,1.50947033,651.32,650.36,1.29155073]
[1747786436318,1.50947033,651.32,650.37,0.58689294]
[1747786436514,1.50947033,651.32,650.38,1.29155073]
[1747786436713,1.50947033,651.32,650.39,0.58689294]
[1747786436920,1.50947033,651.32,650.3,0.9485767]
[1747786436921,1.50947033,651.32,650.4,1.29155073]
[1747786437219,1.50947033,651.32,650.41,0.58689294]
[1747786437414,1.50947033,651.32,650.42,1.29155073]
[1747786437613,1.50947033,651.32,650.43,0.58689294]
[1747786437817,1.50947033,651.32,650.44,1.29155073]
[1747786438014,1.50947033,651.32,650.45,0.58689294]
[1747786438218,1.50947033,651.32,650.46,1.29155073]
[1747786438420,1.50947033,651.32,650.47,0.58689294]
[1747786438715,1.50947033,651.32,650.48,1.29155073]
[1747786438920,1.50947033,651.32,650.49,0.58689294]
[1747786439122,1.50947033,651.27,650.5,1.29155073]
[1747786439319,1.50947033,651.27,650.51,0.58689294]
[1747786439516,1.50947033,651.27,650.52,1.29155073]
[1747786439722,1.50947033,651.27,650.53,0.58689294]
[1747786439920,1.50947033,651.27,650.54,1.29155073]
[1747786440220,1.50947033,651.27,650.55,0.89422928]
[1747786440422,1.50947033,651.27,650.56,0.58689294]
[1747786440618,1.50947033,651.27,650.57,0.58689294]
[1747786440818,1.50947033,651.27,650.58,1.29155073]
[1747786441021,1.50947033,651.27,650.59,1.29155073]
[1747786441222,1.50947033,651.27,650.6,1.29155073]
[1747786441422,1.50947033,651.27,650.61,0.58689294]
[1747786441620,1.50947033,651.27,650.62,1.29155073]
[1747786441817,1.50947033,651.27,650.63,0.58689294]
[1747786442120,2.28198253,651.55,650.64,1.29155073]
[1747786442315,2.28198253,651.55,650.65,0.58689294]
[1747786442516,2.28198253,651.55,650.66,1.29155073]
[1747786442715,2.28198253,651.55,650.67,0.58689294]
[1747786443019,2.28198253,651.55,650.68,0.58689294]
[1747786443220,2.28198253,651.55,650.69,1.29155073]
[1747786443516,0.703,651.54,650.7,0.58689294]
[1747786443719,0.703,651.54,650.71,1.29155073]
[1747786443923,0.703,651.54,650.72,0.58689294]
[1747786444116,0.703,651.54,650.73,1.29155073]
[1747786444319,0.703,651.54,650.74,0.58689294]
[1747786444524,0.703,651.54,650.75,0.58689294]
[1747786444718,0.703,651.54,650.76,0.58689294]
[1747786444923,0.703,651.54,650.77,1.29155073]
[1747786445124,0.703,651.54,650.78,0.58689294]
[1747786445321,0.703,651.54,650.79,1.29155073]
[1747786445628,0.703,651.54,650.8,1.29155073]
[1747786445926,0.703,651.54,650.81,0.58689294]
[1747786446121,0.703,651.54,650.82,0.58689294]
[1747786446325,0.703,651.54,650.83,0.58689294]
[1747786446526,0.703,651.54,650.84,0.58689294]
[1747786446825,0.703,651.54,650.85,1.28901783]
[1747786447024,0.703,651.54,650.86,0.58689294]
[1747786447224,0.703,651.54,650.87,0.58689294]
[1747786447425,0.703,651.54,650.88,1.28901783]
[1747786447625,0.703,651.54,650.89,0.58689294]
[1747786447826,0.703,651.54,650.9,1.28901783]
[1747786448126,0.703,651.54,650.91,0.58689294]
[1747786448326,0.703,651.54,650.92,1.28901783]
[1747786448527,0.703,651.54,650.93,0.58689294]
[1747786448729,0.703,651.54,650.94,0.58689294]
[1747786448929,0.703,651.54,650.95,0.58689294]
[1747786449129,0.703,651.54,650.96,0.58689294]
[1747786449430,0.703,651.54,650.97,0.58689294]
[1747786449629,0.703,651.54,650.9,0.30722554]
[1747786449830,0.703,651.54,650.91,0.5861163]
[1747786450029,0.703,651.54,650.92,0.5861163]
[1747786450224,0.703,651.54,650.93,0.5861163]
[1747786450429,0.703,651.54,650.94,0.5861163]
[1747786450629,0.703,651.54,650.95,0.5861163]
[1747786450826,0.703,651.54,650.96,0.5861163]
[1747786451026,0.703,651.54,650.91,0.30722554]
[1747786451231,0.703,651.54,650.92,0.58588026]
[1747786451433,0.703,651.54,650.93,0.58588026]
[1747786451731,0.703,651.54,650.94,0.58588026]
[1747786452030,0.703,651.54,650.93,1.131]
[1747786452231,0.703,651.54,650.94,0.58567129]
[1747786452427,0.703,651.54,650.93,1.131]
[1747786452631,0.703,651.54,650.94,0.58549297]
[1747786452831,0.703,651.54,650.93,1.131]
[1747786453029,0.703,651.54,650.94,0.58549332]
[1747786453229,0.703,651.54,650.93,1.131]
[1747786469448,0.26721748,651.83,650.93,1.131]
[1747786470548,2.28198253,651.97,650.93,1.131]
[1747786470743,0.26717337,651.83,650.93,1.131]
[1747786471044,2.28198253,651.97,650.93,1.131]
[1747786471849,0.26718773,651.96,650.93,1.131]
[1747786473351,0.994,651.95,650.93,1.131]
[1747786474346,0.26720004,651.94,650.93,1.131]
[1747786476556,0.994,651.95,650.93,1.131]
[1747786477256,0.26716107,651.94,650.93,1.131]
[1747786477552,0.26716107,651.94,650.94,0.58436597]
[1747786477755,0.26716107,651.94,650.93,1.131]
[1747786477957,0.26716107,651.94,650.94,0.58436383]
[1747786478159,0.26716107,651.94,650.59,0.2435767]
[1747786478357,0.26716107,651.94,650.6,0.58443524]
[1747786478557,0.26716107,651.94,650.61,0.58443524]
[1747786478753,0.26716107,651.94,650.62,0.58443524]
[1747786478951,0.26716107,651.94,650.65,0.2435767]
[1747786479152,0.26716107,651.94,650.66,1.30061698]
[1747786479355,0.26716107,651.94,650.67,1.30061698]
[1747786479554,0.26716107,651.94,650.68,0.58443524]
[1747786479752,0.26716107,651.94,650.69,1.30061698]
[1747786479953,0.26716107,651.94,650.7,0.58443524]
[1747786480157,0.26716107,651.94,650.71,1.30061698]
[1747786480357,0.26716107,651.94,650.72,1.30061698]
[1747786480558,0.26716107,651.94,650.73,1.30061698]
[1747786480759,0.26716107,651.94,650.74,0.58443524]
[1747786480959,0.26716107,651.94,650.75,1.30061698]
[1747786481160,0.26716107,651.94,650.76,0.58471815]
[1747786481355,0.26716107,651.94,650.75,0.71618174]
[1747786481356,0.26716107,651.94,650.77,1.30089989]
[1747786481560,0.26716107,651.94,650.78,0.58471815]
[1747786481760,0.26716107,651.94,650.79,0.58471815]
[1747786481961,0.26716107,651.94,650.8,0.58471815]
[1747786482160,0.26716107,651.94,650.81,0.58471815]
[1747786482361,0.26716107,651.94,650.82,0.58471815]
[1747786482661,0.994,651.95,650.83,0.58471815]
[1747786482855,0.994,651.95,650.84,1.30089989]
[1747786483057,0.994,651.95,650.85,0.58471815]
[1747786483258,0.994,651.95,650.86,1.30089989]
[1747786483455,0.994,651.95,650.87,0.58471815]
[1747786483456,0.26716414,651.94,650.87,0.58471815]
[1747786483656,0.26716414,651.94,650.88,1.30089989]
[1747786483856,0.26716414,651.94,650.89,0.58471815]
[1747786484055,0.26716414,651.94,650.9,0.58471815]
[1747786484363,0.26716414,651.94,650.91,0.58471815]
[1747786484562,0.26716414,651.94,650.92,1.30089989]
[1747786484761,0.26716414,651.94,650.93,0.58514431]
[1747786484955,0.26716414,651.94,650.94,0.58514431]
[1747786485158,0.26716414,651.94,650.95,0.58514431]
[1747786485362,0.26716414,651.94,650.96,0.58514431]
[1747786485663,2.28198253,651.91,650.97,0.58514431]
[1747786485861,2.28198253,651.91,650.98,0.58514431]
[1747786486162,2.28198253,651.91,650.71,0.891]
[1747786486356,2.28198253,651.91,650.72,0.58551656]
[1747786486558,2.28198253,651.91,650.73,0.58551656]
[1747786486763,2.28198253,651.91,650.74,0.58551656]
[1747786486962,2.28198253,651.91,650.75,0.58551656]
[1747786487159,2.28198253,651.91,650.76,1.61055159]
[1747786487365,2.28198253,651.91,650.77,1.30338109]
[1747786487564,2.28198253,651.91,650.78,0.58551656]
[1747786487760,2.28198253,651.91,650.79,1.30338109]
[1747786487958,0.955,651.9,650.8,0.58551656]
[1747786488160,0.955,651.9,650.81,0.58551656]
[1747786488362,0.955,651.9,650.82,0.58551656]
[1747786488567,0.955,651.9,650.83,1.30338109]
[1747786488765,0.955,651.9,650.84,0.58551656]
[1747786489064,0.955,651.9,650.85,1.30338109]
[1747786489265,0.955,651.9,650.82,0.2435767]
[1747786489266,0.955,651.9,650.86,1.30338109]
[1747786489569,0.955,651.9,650.87,0.58551656]
[1747786489764,0.955,651.9,650.88,0.58551656]
[1747786490063,0.955,651.9,650.89,0.58551656]
[1747786490261,0.955,651.9,650.9,1.30338109]
[1747786490458,0.955,651.9,650.91,1.30338109]
[1747786490664,0.955,651.9,650.92,0.58551656]
[1747786490864,0.955,651.9,650.93,0.58551656]
[1747786491160,0.955,651.9,650.94,0.58551656]
[1747786491366,0.955,651.9,650.95,0.58551656]
[1747786491664,0.955,651.9,650.96,0.58551656]
[1747786491865,0.955,651.9,650.97,0.58551656]
[1747786492166,0.955,651.9,650.98,0.58551656]
[1747786492366,0.955,651.9,650.99,1.30338109]
[1747786492565,0.955,651.9,651.0,1.30338109]
[1747786492764,0.955,651.9,651.01,0.89268706]
[1747786492967,0.955,651.9,651.02,1.30338109]
[1747786493161,0.955,651.9,651.03,0.58551656]
[1747786493361,0.955,651.9,651.04,0.58646799]
[1747786493561,0.955,651.9,651.05,1.30433252]
[1747786493764,0.955,651.9,651.06,0.58646799]
[1747786493965,0.955,651.9,651.07,0.58646799]
[1747786494166,0.955,651.9,651.08,0.58646799]
[1747786494367,0.955,651.9,651.09,1.30433252]
[1747786494667,0.955,651.9,651.1,0.58646799]
[1747786494967,0.955,651.9,651.11,0.58646799]
[1747786495167,0.955,651.9,651.12,1.61150302]
[1747786495362,0.955,651.9,651.13,0.58646799]
[1747786495565,0.955,651.9,651.14,0.58646799]
[1747786495863,0.955,651.9,651.15,1.30433252]
[1747786496062,0.955,651.9,651.16,0.58646799]
[1747786496261,0.955,651.9,651.17,1.30433252]
[1747786496460,0.955,651.9,651.18,1.30433252]
[1747786496665,0.955,651.9,651.19,0.58646799]
[1747786496865,0.955,651.9,651.2,1.30433252]
[1747786497067,0.955,651.9,651.21,1.30433252]
[1747786497265,0.955,651.9,651.22,0.58646799]
[1747786497464,0.955,651.9,651.23,0.58646799]
[1747786497768,0.955,651.9,651.24,0.58646799]
[1747786497968,0.955,651.9,651.25,0.58646799]
[1747786498169,0.955,651.9,651.26,0.58646799]
[1747786498369,0.955,651.9,651.27,0.58646799]
[1747786498569,0.955,651.9,651.18,0.3071705]
[1747786498871,0.955,651.9,651.19,1.32057904]
[1747786499065,0.955,651.9,651.2,0.58677287]
[1747786499270,0.955,651.9,651.19,0.73380617]
[1747786499271,0.955,651.9,651.21,0.58677287]
[1747786499471,0.955,651.9,651.22,0.58677287]
[1747786499672,0.955,651.9,651.23,0.58677287]
[1747786499869,0.955,651.9,651.24,0.58677287]
[1747786500068,0.955,651.9,651.25,0.58677287]
[1747786500271,0.955,651.9,651.26,0.58692589]
[1747786500570,0.955,651.9,651.27,0.58692589]
[1747786500772,0.955,651.9,651.28,0.58692589]
[1747786500972,0.955,651.9,650.94,0.2435767]
[1747786501172,0.955,651.9,650.95,1.32097461]
[1747786501371,0.955,651.9,650.96,0.58697753]
[1747786501571,0.955,651.9,650.97,0.58697753]
[1747786501771,0.955,651.9,650.98,0.58697753]
[1747786501973,0.955,651.9,650.99,0.58697753]
[1747786502273,0.955,651.9,651.0,1.32097461]
[1747786502473,0.955,651.9,651.01,0.58697753]
[1747786502674,0.955,651.9,651.02,1.32097461]
[1747786502873,0.955,651.9,651.03,0.58697753]
[1747786503074,0.955,651.9,651.04,0.58697753]
[1747786503275,0.955,651.9,651.05,0.58697753]
[1747786503575,0.955,651.9,651.06,0.8940886]
[1747786503768,0.955,651.9,651.07,0.58697753]
[1747786503972,0.955,651.9,651.08,0.58697753]
[1747786504174,0.955,651.9,651.09,0.58697753]
[1747786504370,0.955,651.9,651.1,0.58697753]
[1747786504574,0.955,651.9,651.11,0.58697753]
[1747786504878,0.955,651.9,651.12,0.58700865]
[1747786505076,2.28198253,652.05,651.13,1.32100573]
[1747786505270,2.28198253,652.05,651.14,0.58700865]
[1747786505471,2.28198253,652.05,651.15,1.32100573]
[1747786505674,2.28198253,652.05,651.16,1.32100573]
[1747786505975,2.28198253,651.97,651.17,0.58700865]
[1747786506176,2.28198253,651.97,651.18,0.58700865]
[1747786506475,2.28198253,651.97,651.19,0.58700865]
[1747786506771,2.28198253,651.97,651.2,0.58700865]
[1747786506977,2.28198253,651.97,651.21,0.58700865]
[1747786507177,2.28198253,651.97,651.22,0.58700865]
[1747786507378,2.28198253,651.97,651.23,0.58700865]
[1747786507579,2.28198253,651.97,650.91,0.2435767]
[1747786507776,2.28198253,651.97,650.92,1.32060589]
[1747786507977,2.28198253,651.97,650.93,1.32060589]
[1747786508174,2.28198253,651.97,650.94,0.58703577]
[1747786508378,2.28198253,651.97,650.95,0.58703577]
[1747786508573,2.28198253,651.97,650.96,1.32060589]
[1747786508779,2.28198253,651.97,650.97,0.58703577]
[1747786508979,2.28198253,651.97,650.98,0.58703577]
[1747786509181,2.28198253,651.97,650.96,0.73357012]
[1747786509182,2.28198253,651.97,650.99,1.32060589]
[1747786509481,2.28198253,651.97,651.0,1.32060589]
[1747786509781,2.28198253,651.96,651.01,0.58703577]
[1747786509974,2.28198253,651.96,651.02,0.58703577]
[1747786510180,2.28198253,651.96,651.03,0.58703577]
[1747786510476,2.28198253,651.96,651.04,0.58703577]
[1747786510780,2.28198253,651.96,651.05,1.62773107]
[1747786510979,2.28198253,651.96,651.06,0.58703577]
[1747786511281,2.28198253,651.96,651.07,0.58703577]
[1747786511479,2.28198253,651.96,651.08,0.58703577]
[1747786511683,2.28198253,651.96,651.09,0.58667902]
[1747786511877,2.28198253,651.96,651.1,0.58667902]
[1747786512081,2.28198253,651.96,651.11,1.32024914]
[1747786512280,2.28198253,651.96,651.12,0.58667902]
[1747786512484,2.28198253,652.39,651.13,0.58667902]
[1747786512683,2.28198253,652.39,651.14,0.58667902]
[1747786512883,2.28198253,652.39,651.15,0.58667902]
[1747786513083,2.28198253,652.39,651.16,0.58667902]
[1747786513383,0.26701962,652.38,651.17,1.32024914]
[1747786513582,0.26701962,652.38,651.18,0.58667902]
[1747786513880,0.26701962,652.38,651.19,1.32024914]
[1747786514083,0.26701962,652.38,651.2,0.58667902]
[1747786514382,0.26701962,652.38,651.21,1.32024914]
[1747786514583,0.26701962,652.38,651.22,1.32024914]
[1747786514782,0.26701962,652.38,651.23,0.58667902]
[1747786514978,0.26701962,652.38,651.24,1.32024914]
[1747786515178,0.26701962,652.38,651.25,0.58624981]
[1747786515383,0.26701962,652.38,651.26,0.58624981]
[1747786515583,2.28198253,652.44,651.27,1.31981993]
[1747786515783,2.28198253,652.44,651.28,1.31981993]
[1747786515978,2.28198253,652.44,651.29,0.58624981]
[1747786516279,2.28198253,652.44,651.3,1.31981993]
[1747786516482,0.26699504,652.43,651.31,1.31981993]
[1747786516683,0.26699504,652.43,651.32,0.58624981]
[1747786516884,0.26699504,652.43,651.33,0.58605005]
[1747786517084,0.26699504,652.43,651.34,0.58605005]
[1747786517285,0.26699504,652.43,651.35,0.58605005]
[1747786517479,0.26699504,652.43,651.36,0.58605005]
[1747786517684,0.26699504,652.43,651.37,0.58605005]
[1747786517884,0.26699504,652.43,651.33,0.30712518]
[1747786518084,0.26699504,652.43,651.34,0.58596671]
[1747786518286,0.26699504,652.43,651.35,0.58596671]
[1747786518585,2.28198253,652.44,651.36,0.58596671]
[1747786518781,2.28198253,652.44,651.37,0.58596671]
[1747786518986,0.26698787,652.42,650.96,0.2435767]
[1747786519281,0.26698787,652.42,650.97,0.58578508]
[1747786519488,0.26698787,652.42,650.98,1.62324064]
[1747786519682,0.26698787,652.42,650.99,0.58578508]
[1747786519885,0.26698787,652.42,651.0,0.58578508]
[1747786520088,0.26698787,652.42,651.01,0.58578508]
[1747786520284,0.26698787,652.42,651.02,0.58578508]
[1747786520489,0.26698787,652.42,651.03,0.58578508]
[1747786520788,2.28198253,652.24,651.04,1.55977706]
[1747786520982,2.28198253,652.24,651.05,0.58578508]
[1747786521285,2.28198253,652.24,651.06,1.31620036]
[1747786521486,2.28198253,652.24,651.07,1.31620036]
[1747786521684,2.28198253,652.24,651.08,0.58578508]
[1747786521885,2.28198253,652.24,651.09,0.58578508]
[1747786522085,2.28198253,652.24,651.1,0.5856086]
[1747786522283,2.28198253,652.24,651.09,0.73041528]
[1747786522284,2.28198253,652.24,651.11,0.89264888]
[1747786522487,2.28198253,652.24,651.12,0.5856086]
[1747786522683,2.28198253,652.24,651.13,1.31602388]
[1747786522891,2.28198253,652.24,651.14,0.5856086]
[1747786523090,2.28198253,652.24,651.15,0.5856086]
[1747786523284,2.28198253,652.24,651.16,1.31602388]
[1747786523489,2.28198253,652.24,651.17,0.5856086]
[1747786523792,0.26702475,652.33,651.18,1.31602388]
[1747786523990,0.26702475,652.33,651.19,0.5856086]
[1747786524184,0.26702475,652.33,651.2,1.31602388]
[1747786524384,0.26702475,652.33,651.21,0.5856086]
[1747786524590,2.28198253,652.46,651.22,0.5856086]
[1747786524794,2.28198253,652.46,651.23,1.31602388]
[1747786525090,2.28198253,652.46,651.24,1.62306416]
[1747786525290,0.26698992,652.45,651.25,0.5856086]
[1747786525491,0.26698992,652.45,651.26,1.31703378]
[1747786525691,0.26698992,652.45,651.26,0.73041528]
[1747786525885,0.26698992,652.45,651.27,0.58661901]
[1747786526084,0.26698992,652.45,651.28,0.58661901]
[1747786526287,0.26698992,652.45,651.29,0.58661901]
[1747786526487,0.26698992,652.45,651.3,1.31703429]
[1747786526789,0.26698992,652.45,651.31,1.31703429]
[1747786526988,0.26698992,652.45,651.32,0.58661901]
[1747786527187,0.26698992,652.45,651.33,0.58661901]
[1747786527391,0.26698992,652.45,651.34,0.58661901]
[1747786527592,2.28198253,652.46,651.35,0.58661901]
[1747786527788,2.28198253,652.46,651.36,0.58661901]
[1747786527989,0.26697865,652.44,651.37,0.58661901]
[1747786528187,0.26697865,652.44,651.38,1.31703429]
[1747786528389,0.26697865,652.44,651.39,0.58661901]
[1747786528688,2.28198253,652.39,651.4,0.5864522]
[1747786528898,2.28198253,652.39,651.41,0.5864522]
[1747786529093,2.28198253,652.39,651.42,0.5864522]
[1747786529393,2.28198253,652.39,651.1,0.2435767]
[1747786529594,2.28198253,652.39,651.11,1.31437946]
[1747786529793,2.28198253,652.39,651.12,1.31437946]
[1747786529994,2.28198253,652.39,651.13,0.58643558]
[1747786530195,2.28198253,652.39,651.14,0.89343207]
[1747786530395,2.28198253,652.39,651.15,1.31437946]
[1747786530591,2.28198253,652.39,651.16,1.31437946]
[1747786530799,2.28198253,652.39,651.17,0.58643558]
[1747786530997,2.28198253,652.39,651.18,0.58643558]
[1747786531197,2.28198253,652.39,651.19,1.31437946]
[1747786531398,2.28198253,652.39,651.2,0.58643558]
[1747786531602,2.28198253,652.35,651.21,0.58643558]
[1747786531795,2.28198253,652.35,651.22,1.31437946]
[1747786531993,2.28198253,652.35,651.23,0.58643558]
[1747786532199,2.28198253,652.35,651.24,0.58643558]
[1747786532399,2.28198253,652.35,651.25,1.31437946]
[1747786532693,2.28198253,652.35,651.26,0.58643558]
[1747786532894,2.28198253,652.35,651.27,1.31437946]
[1747786533098,2.28198253,652.35,651.28,1.62137595]
[1747786533300,2.28198253,652.35,651.29,0.58643558]
[1747786533499,2.28198253,652.35,651.3,0.58643558]
[1747786533799,2.28198253,652.35,651.31,1.31437946]
[1747786533994,2.28198253,652.35,651.32,0.58643558]
[1747786534193,2.28198253,652.35,651.33,1.31437946]
[1747786534394,0.26699197,652.34,651.34,0.58643558]
[1747786534594,0.26699197,652.34,651.35,1.31437946]
[1747786534793,0.26699197,652.34,651.36,0.58643558]
[1747786534993,0.26699197,652.34,651.37,0.58643558]
[1747786535194,2.28198253,652.3,651.38,0.58643558]
[1747786535398,2.28198253,652.3,651.39,0.58643558]
[1747786535598,2.28198253,652.3,651.4,0.58643558]
[1747786535801,2.28198253,652.3,651.35,0.30699649]
[1747786536001,2.28198253,652.3,651.36,0.58689293]
[1747786536200,2.28198253,652.3,651.37,0.58689293]
[1747786536401,2.28198253,652.3,651.38,1.31574008]
[1747786536703,2.28198253,652.3,651.39,1.62273657]
[1747786537001,2.28198253,652.3,651.4,0.58689293]
[1747786537203,2.28198253,652.3,651.41,1.31574008]
[1747786537403,2.28198253,652.3,651.42,0.58689293]
[1747786537605,2.28198253,652.3,651.43,0.58689293]
[1747786537901,2.28198253,652.3,651.44,0.58694901]
[1747786538097,2.28198253,652.33,651.45,0.58694901]
[1747786538297,2.28198253,652.33,651.46,0.58694901]
[1747786538602,2.28198253,652.33,651.47,0.58696679]
[1747786538803,2.28198253,652.33,651.48,0.58696679]
[1747786539102,2.28198253,652.33,651.49,0.58696679]
[1747786539301,2.28198253,652.33,651.5,0.58696679]
[1747786539498,2.28198253,652.33,651.51,0.58696679]
[1747786539702,2.28198253,652.33,651.52,0.58696679]
[1747786539898,2.28198253,652.33,651.53,0.58696679]
[1747786540103,2.28198253,652.33,651.54,0.58696679]
[1747786540306,2.28198253,652.33,651.55,0.58696679]
[1747786540604,2.28198253,652.33,651.56,0.58696679]
[1747786540804,2.28198253,652.33,651.57,0.58696679]
[1747786541004,2.28198253,652.36,651.58,0.58696679]
[1747786541204,2.28198253,652.36,651.59,0.58696679]
[1747786541505,2.28198253,652.36,651.6,0.58684062]
[1747786541698,2.28198253,652.36,651.32,0.2435767]
[1747786541901,2.28198253,652.36,651.33,0.58684062]
[1747786542102,2.28198253,652.36,651.34,0.58684062]
[1747786542298,2.28198253,652.36,651.35,1.62178202]
[1747786542503,2.28198253,652.36,651.36,0.58684062]
[1747786542701,2.28198253,652.36,651.37,0.58684062]
[1747786542903,2.28198253,652.36,651.38,1.31485108]
[1747786543101,2.28198253,652.36,651.39,0.58683991]
[1747786543306,2.28198253,652.36,651.4,1.31485037]
[1747786543504,2.28198253,652.36,651.41,0.58683991]
[1747786543703,2.28198253,652.36,651.42,1.31485037]
[1747786543903,2.28198253,652.36,651.43,0.58683991]
[1747786544105,2.28198253,652.36,651.42,0.72801046]
[1747786544106,2.28198253,652.4,651.44,1.31485037]
[1747786544305,2.28198253,652.4,651.45,0.58683991]
[1747786544605,2.28198253,652.4,651.46,1.31485037]
[1747786544800,2.28198253,652.4,651.47,0.58688753]
[1747786545003,2.28198253,652.4,651.48,1.31489799]
[1747786545204,2.28198253,652.4,651.49,0.58688753]
[1747786545505,2.28198253,652.4,651.5,1.62182893]
[1747786545708,2.28198253,652.4,651.51,0.58688753]
[1747786545900,2.28198253,652.4,651.52,0.58688753]
[1747786546103,2.28198253,652.4,651.53,0.58688753]
[1747786546406,2.28198253,652.4,651.54,0.58688753]
[1747786546606,2.28198253,652.4,651.5,0.30693094]
[1747786546906,2.28198253,652.4,651.51,0.58709292]
[1747786547106,2.28198253,652.4,651.52,0.58709292]
[1747786547307,2.28198253,652.33,651.53,0.58709292]
[1747786547507,2.28198253,652.33,651.54,0.58709292]
[1747786547707,2.28198253,652.33,651.25,0.2435767]
[1747786547908,2.28198253,652.33,651.26,0.89411388]
[1747786548204,2.28198253,652.33,651.27,1.31776652]
[1747786548409,2.28198253,652.33,651.28,0.58715081]
[1747786548704,2.28198253,652.33,651.29,1.31776652]
[1747786548905,2.28198253,652.33,651.3,0.58715081]
[1747786549110,2.28198253,652.33,651.31,0.58715081]
[1747786549409,2.28198253,652.33,651.32,0.58715081]
[1747786549610,2.28198253,652.33,651.33,0.58715081]
[1747786549910,2.28198253,652.33,651.34,1.31776652]
[1747786550111,2.28198253,652.33,651.35,0.58715081]
[1747786550312,2.28198253,652.33,651.36,0.58715081]
[1747786550611,2.28198253,652.33,651.37,0.58715081]
[1747786550811,2.28198253,652.33,651.38,0.58715081]
[1747786551007,2.28198253,652.33,651.39,0.58715081]
[1747786551211,2.28198253,652.33,651.4,1.31776652]
[1747786551511,2.28198253,652.33,651.41,1.31776652]
[1747786551714,2.28198253,652.33,651.42,0.58721699]
[1747786552012,2.28198253,652.33,651.43,1.3178327]
[1747786552212,2.28198253,652.33,651.44,0.58721699]
[1747786552409,2.28198253,652.33,651.45,1.3178327]
[1747786552611,2.28198253,652.33,651.46,0.58721699]
[1747786552914,2.28198253,652.33,651.47,1.3178327]
[1747786553109,0.26697148,652.45,651.48,0.58721699]
[1747786553308,2.28198253,652.53,651.49,1.3178327]
[1747786553512,2.28198253,652.53,651.5,0.58721699]
[1747786553713,2.28198253,652.53,651.51,0.58721699]
[1747786553909,2.28198253,652.53,651.52,1.3178327]
[1747786554111,2.28198253,652.53,651.53,0.58721699]
[1747786554310,2.28198253,652.53,651.54,0.58721699]
[1747786554511,2.28198253,652.53,651.55,1.3178327]
[1747786554710,2.28198253,652.53,651.56,0.58721699]
[1747786554913,2.28198253,652.53,651.57,0.58721699]
[1747786555217,2.28198253,652.53,651.58,1.31768925]
[1747786555416,2.28198253,652.53,651.59,0.58707354]
[1747786555616,2.28198253,652.53,651.6,0.58707354]
[1747786555816,2.28198253,652.53,651.61,0.58707354]
[1747786556017,2.28198253,652.53,651.62,0.58707354]
[1747786556216,0.26691415,652.54,651.63,0.58707354]
[1747786556418,0.26691415,652.54,651.64,0.58707354]
[1747786556614,0.26691415,652.54,651.29,0.2435767]
[1747786556816,0.26691415,652.54,651.3,0.58708717]
[1747786557014,0.26691415,652.54,651.31,1.33234228]
[1747786557217,0.26691415,652.54,651.32,0.89400314]
[1747786557418,0.26691415,652.54,651.33,1.33234228]
[1747786557721,2.28198253,652.55,651.34,0.58708717]
[1747786557920,2.28198253,652.55,651.35,0.58708717]
[1747786558219,2.28198253,652.55,651.36,1.33234228]
[1747786558420,0.26694384,652.54,651.37,0.58708717]
[1747786558621,0.26694384,652.54,651.38,0.58708717]
[1747786558916,2.28198253,652.47,651.39,1.63925825]
[1747786559120,2.28198253,652.47,651.4,0.58708717]